{"text_format":"1","workbook":"xlsx","n_sheets":4,"sheets":[" Boletín de Inscripción ","Exportacion"," Derechos de Inscripción "," Datos de Organizadores "],"not_rendered":{"charts":0,"images":1,"macros":1,"external_links":0,"defined_names":85,"comments":1,"pivot_tables":0},"unopened":[],"bounds":{"document_bytes":16777216,"sheet_cells":100000,"rows_first":2000,"rows_last":500,"rows_between":2000,"halvings":0,"cell_chars":16384,"cell_head_chars":4096},"cells_cut":0,"cells_raw":0,"read":"whole","date_system":"1900"}

{"sheet":" Boletín de Inscripción ","index":0,"n_rows":186,"n_cols":31,"rows_kept":186,"cut":false,"hidden":false,"merged":[[174,8,174,13],[175,8,175,13],[177,14,177,15],[176,8,176,13],[172,8,172,13],[173,8,173,13],[177,8,177,13],[175,2,175,6],[176,2,176,6],[177,2,177,6],[173,14,173,15],[174,14,174,15],[175,14,175,15],[176,14,176,15],[173,2,173,6],[174,2,174,6],[168,28,168,32],[170,2,170,32],[171,14,171,15],[172,14,172,15],[168,2,168,11],[168,12,168,15],[168,16,168,23],[168,24,168,27],[171,2,171,6],[172,2,172,6],[171,8,171,13],[165,21,165,23],[165,24,165,27],[165,28,165,32],[166,21,166,23],[166,24,166,32],[165,2,166,11],[165,12,165,15],[166,12,166,15],[165,16,165,20],[166,16,166,20],[163,21,163,26],[163,27,163,32],[162,2,162,4],[162,5,162,10],[163,2,163,4],[163,5,163,10],[163,11,163,15],[163,16,163,20],[162,11,162,15],[162,16,162,20],[160,21,160,26],[160,27,160,32],[161,21,161,26],[161,27,161,32],[162,21,162,26],[162,27,162,32],[161,2,161,4],[161,5,161,10],[161,11,161,15],[161,16,161,20],[160,2,160,4],[160,5,160,10],[160,11,160,15],[160,16,160,20],[157,2,157,32],[159,2,159,4],[159,5,159,10],[159,11,159,15],[159,16,159,20],[159,21,159,26],[159,27,159,32],[148,16,148,24],[148,25,148,32],[149,16,149,24],[149,25,149,32],[150,16,150,24],[150,25,150,32],[152,16,152,24],[153,12,153,15],[153,16,153,24],[148,2,150,11],[155,2,155,11],[155,12,155,15],[155,16,155,24],[155,25,155,32],[69,9,69,12],[75,2,75,32],[71,22,73,25],[73,9,73,15],[69,26,69,32],[89,13,93,16],[90,17,93,20],[124,25,124,32],[125,2,126,23],[125,25,126,32],[94,16,94,32],[95,2,98,23],[119,6,119,9],[119,11,119,24],[121,11,121,24],[122,11,122,24],[99,2,106,23],[80,24,81,25],[80,18,81,21],[73,2,73,8],[67,2,67,8],[86,10,87,27],[80,22,81,23],[71,2,71,8],[71,9,71,15],[67,9,67,15],[89,2,93,5],[80,26,81,31],[81,4,81,15],[80,4,80,15],[78,4,78,15],[78,16,79,32],[79,4,79,15],[77,2,77,32],[70,16,70,21],[68,26,68,32],[69,2,69,8],[68,13,68,15],[68,9,68,12],[67,26,67,32],[67,16,67,25],[69,13,69,15],[84,2,84,32],[82,2,82,3],[89,21,93,27],[89,6,93,9],[100,25,100,32],[101,25,101,32],[95,25,99,32],[89,10,93,12],[86,28,87,32],[86,6,87,9],[82,4,82,5],[82,8,82,15],[62,13,62,20],[58,16,58,20],[62,3,62,7],[62,8,62,12],[47,11,47,20],[51,3,51,8],[49,16,49,20],[47,3,47,10],[47,21,47,32],[31,2,31,32],[33,2,44,2],[35,3,35,10],[35,11,35,20],[35,21,35,32],[42,29,42,32],[40,16,40,20],[40,21,40,32],[42,24,42,28],[42,3,42,8],[42,9,42,15],[42,16,42,23],[38,3,38,15],[44,3,44,7],[44,8,44,12],[44,13,44,20],[38,16,38,32],[40,3,40,15],[44,21,44,32],[51,29,51,32],[64,2,64,32],[62,21,62,32],[51,9,51,15],[49,3,49,15],[53,3,53,7],[53,21,53,32],[60,24,60,28],[60,29,60,32],[58,21,58,32],[56,11,56,20],[53,8,53,12],[49,21,49,32],[53,13,53,20],[56,21,56,32],[58,3,58,15],[56,3,56,10],[46,2,53,2],[51,16,51,23],[60,16,60,23],[60,3,60,8],[60,9,60,15],[55,2,62,2],[51,24,51,28],[0,1,0,33],[20,2,20,15],[5,1,5,33],[8,1,8,13],[7,1,7,13],[7,16,8,33],[16,2,16,23],[16,25,16,32],[17,2,18,23],[11,6,11,9],[11,11,11,24],[14,11,14,24],[13,11,13,24],[17,25,18,32],[20,17,20,32],[2,2,2,32],[22,30,23,32],[22,26,23,29],[25,2,26,15],[22,17,23,25],[24,30,29,32],[27,21,29,25],[24,17,26,20],[24,21,26,25],[21,2,22,15],[24,26,29,29],[27,2,29,15],[23,2,24,15],[27,17,29,20],[66,16,66,25],[66,26,66,32],[71,20,73,21],[71,16,73,19],[70,22,70,25],[68,16,69,25],[142,2,142,15],[152,2,154,11],[144,25,144,32],[143,16,143,17],[143,25,143,26],[143,18,143,24],[143,27,143,32],[146,2,146,15],[144,2,144,15],[144,16,144,24],[152,25,152,32],[153,25,153,32],[154,25,154,32],[146,16,146,24],[143,2,143,15],[145,2,145,15],[145,16,145,24],[154,12,154,15],[154,16,154,24],[152,12,152,15],[86,2,87,5],[141,3,141,31],[138,2,138,32],[140,2,140,32],[124,2,124,23],[132,6,135,23],[128,6,130,23],[128,30,129,32],[130,30,135,32],[132,2,135,5],[128,2,130,5],[128,25,129,28],[130,25,135,28],[89,28,93,32],[146,25,146,32],[142,25,142,32],[142,16,142,24],[145,25,145,32],[148,12,148,15],[149,12,149,15],[150,12,150,15]]}
[]
[]
[null,null,"¡ MUY IMPORTANTE! NO OLVIDE ACTIVAR LOS MACROS-ACTIVEX DE ESTA HOJA !"]
[null,null,"1 - ","Seleccione la prueba en la lista desplegable"]
[null,null,"2 - ","Rellene el Boletín, guardelo en su ordenador y envíelo al Organizador (Recomendable enviar por Correo electrónico)"]
[null,"Para pruebas posteriores ABRA EL DOCUMENTO GUARDADO EN SU ORDENADOR, seleccione la nueva prueba en la lista desplegable, modifique unicamente aquellos datos personales o del vehículo que sea necesario y envíelo al Organizador"]
[]
[null,{"$f":"Opcion","v":"ESTADO NORMAL (Todos los datos visibles)"},null,null,null,null,null,null,null,null,null,null,null,null,null,null,"  Lista Pruebas"]
[null,{"$f":"Opcion2","v":"Active la casilla para imprimir un Boletín de Inscripción vacío"}]
[]
[]
[null,null,null,null,null,null,{"$f":"NOW()","v":"2016-09-20T13:18:35.700"},null,null,null,null,"CAMPEONATO de ANDALUCIA"]
[]
[null,null,null,null,null,null,null,null,null,null,null,"Rally-Cronos 2016"]
[]
[null,3]
[null,null,"Nombre de la prueba",null,null,null,null,null,null,null,null,null,null,null,null,null,null,null,null,null,null,null,null,null,null,"Fecha de la prueba"]
[null,null,{"$f":"IF(Blanco=TRUE,\"\",' Derechos de Inscripción '!B18)","v":"II RallyCrono Ciudad de Enix"},null,null,null,null,null,null,null,null,null,null,null,null,null,null,null,null,null,null,null,null,null,null,{"$f":"IF(Blanco=TRUE,\"\",' Derechos de Inscripción '!J31+5)","v":"2016-11-05"}]
[]
[]
[null,null,{"$f":"IF(Blanco=TRUE,\"\",' Derechos de Inscripción '!D21)","v":"CD Hereje Competición"},null,null,null,null,null,null,null,null,null,null,null,null,null,null,"SOLICITUD de INSCRIPCION"]
[null,null,{"$f":"IF(Blanco=TRUE,\"\",' Derechos de Inscripción '!D22)","v":"C/ Osa Mayor 4"}]
[null,null,null,null,null,null,null,null,null,null,null,null,null,null,null,null,null,"Fecha y hora de recepción",null,null,null,null,null,null,null,null,"Nº Entrada",null,null,null,"Número"]
[null,null,{"$f":"IF(Blanco=TRUE,\"\",IF(TEXT(' Derechos de Inscripción '!D23,\"00000\")=\" \",\"\",TEXT(' Derechos de Inscripción '!D23,\"00000\")&\"-\"&' Derechos de Inscripción '!F23&\" \"&' Derechos de Inscripción '!D24))","v":"04009-Almeria (ALMERIA)"}]
[null,null,null,null,null,null,null,null,null,null,null,null,null,null,null,null,null,"Fecha:"]
[null,null,{"$f":"IF(Blanco=TRUE,\"\",IF(' Derechos de Inscripción '!D25=\"\",IF(' Derechos de Inscripción '!F25=\"\",\"\",\"FAX: \"&' Derechos de Inscripción '!F25),IF(' Derechos de Inscripción '!F25=\"\",\"TLF: \"&' Derechos de Inscripción '!D25,\"TLF: \"&' Derechos de Inscripción '!D25&\" - FAX: \"&' Derechos de Inscripción '!F25)))","v":"TLF: 637753716 - FAX: 0"}]
[]
[null,null,{"$f":"IF(Blanco=TRUE,\"\",\"e_mail: \" & ' Derechos de Inscripción '!H25)","v":"e_mail: herejecompeticion@gmail.com"},null,null,null,null,null,null,null,null,null,null,null,null,null,null,"Hora:"]
[]
[]
[]
[null,null,"DATOS PERSONALES"]
[]
[null,null,"CONCURSANTE","INDIVIDUAL"]
[null,null,null,"1º Apellido",null,null,null,null,null,null,null,"2º Apellido",null,null,null,null,null,null,null,null,null,"Nombre:"]
[null,null,null,"CARRILLO",null,null,null,null,null,null,null,"HARO",null,null,null,null,null,null,null,null,null,"JOSE ANTONIO"]
[null,null,null,"COLECTIVO"]
[null,null,null,"Denominación:",null,null,null,null,null,null,null,null,null,null,null,null,"Representante:"]
[]
[null,null,null,"Dirección",null,null,null,null,null,null,null,null,null,null,null,null,"C.P.:",null,null,null,null,"Población:"]
[]
[null,null,null,"Provincia:",null,null,null,null,null,"País:",null,null,null,null,null,null,"NIF / CIF:",null,null,null,null,null,null,null,"Licencia:",null,null,null,null,"Copia:"]
[]
[null,null,null,"Teléfono:",null,null,null,null,"Teléfono:",null,null,null,null,"FAX:",null,null,null,null,null,null,null,"e_mail:"]
[]
[]
[null,null,"PILOTO","1º Apellido",null,null,null,null,null,null,null,"2º Apellido",null,null,null,null,null,null,null,null,null,"Nombre:"]
[]
[null,null,null,"Dirección",null,null,null,null,null,null,null,null,null,null,null,null,"C.P.:",null,null,null,null,"Población:"]
[]
[null,null,null,"Provincia:",null,null,null,null,null,"País:",null,null,null,null,null,null,"NIF:",null,null,null,null,null,null,null,"Licencia:",null,null,null,null,""]
[]
[null,null,null,"Teléfono:",null,null,null,null,"Teléfono:",null,null,null,null,"FAX:",null,null,null,null,null,null,null,"e_mail:"]
[]
[]
[null,null,"COPILOTO","1º Apellido",null,null,null,null,null,null,null,"2º Apellido",null,null,null,null,null,null,null,null,null,"Nombre:"]
[]
[null,null,null,"Dirección",null,null,null,null,null,null,null,null,null,null,null,null,"C.P.:",null,null,null,null,"Población:"]
[]
[null,null,null,"Provincia:",null,null,null,null,null,"País:",null,null,null,null,null,null,"NIF:",null,null,null,null,null,null,null,"Licencia:",null,null,null,null,""]
[]
[null,null,null,"Teléfono:",null,null,null,null,"Teléfono:",null,null,null,null,"FAX:",null,null,null,null,null,null,null,"e_mail:"]
[]
[]
[null,null,"DATOS del VEHÍCULO"]
[]
[null,null,"Marca",null,null,null,null,null,null,"Ficha Homologación",null,null,null,null,null,null,"Tipo de vehículo (Seleccionar de la Lista)",null,null,null,null,null,null,null,null,null,"Grupo Vehiculos Historicos"]
[null,null,null,null,null,null,null,null,null,null,null,null,null,null,null,null,{"$f":"VLOOKUP(' Datos de Organizadores '!T31,' Datos de Organizadores '!U28:X39,2)","v":"Seleccionar de la lista desplegable"},null,null,null,null,null,null,null,null,null,{"$f":"IF(Q72=\"H\",VLOOKUP(' Datos de Organizadores '!AA29,' Datos de Organizadores '!Z30:AB40,3),\" \")","v":" "}]
[null,null,"Modelo",null,null,null,null,null,null,"Procedencia F-2000",null,null,null,"Año",null,null,{"$f":"IF(Campeonato=2,\"\",IF(Grupo=12,\"\",VLOOKUP(' Datos de Organizadores '!T31,' Datos de Organizadores '!U28:X39,4)))","v":" "},null,null,null,null,null,null,null,null,null,"Nº ITV HISTORICOS"]
[]
[null,null,"Cilindrada",null,null,null,null,null,null,"TURBO",null,null,null,null,null,null,"Grupo",null,null,null,null,null,"CLASE",null,null,null,null,null,"Challeng Rallycar"]
[null,null,null,null,null,null,null,null,null,null,null,null,null,null,null,null,{"$f":"IF(Campeonato=2,\"\",IF(Grupo=12,\"\",VLOOKUP(' Datos de Organizadores '!T31,' Datos de Organizadores '!U28:X39,3)))","v":" "},null,null,null,{"$f":"AA68","v":" "},null,{"$f":"CLASE","v":0}]
[null,null,"Cilindrada Corregida",null,null,null,null,null,null,"Matricula",null,null,null,null,null,null,null,null,null,null,null,null,null,null,null,null,null,null,"Copa Colombes"]
[null,null,{"$f":"IF(Turbo=2,VALUE(CILINDRADA),ROUND(VALUE(CILINDRADA)*1.7,0))","v":0}]
[]
[null,null,"PREMIOS"]
[]
[null,null,"Es IMPRESCINDIBLE rellenar este apartado para poder realizar el pago de premios por transferencia bancaria"]
[null,null,"  Nombre:",null,null,null,null,null,null,null,null,null,null,null,null,null,"Cuenta de abono en formato C.C.C. (20 dígitos)"]
[null,null,"  NIF / CIF:"]
[null,null,"  Dirección:"]
[null,null,"  Localidad:"]
[null,null,"  C. Postal:",null,null,null,"Provincia:"]
[]
[null,null,"DERECHOS de INSCRIPCIÓN"]
[]
[null,null,{"$f":"\"HASTA\"&\" \"&TEXT(' Derechos de Inscripción '!J31,\"DD/mm/aaaa\")","v":"HASTA 31/10/2016"},null,null,null,"Despues del cierre",null,null,null,"Nº CUENTA BANCARIA FAA (BANCO SABADELL) IBAN ES74",null,null,null,null,null,null,null,null,null,null,null,null,null,null,null,null,null,"PUBLICIDAD"]
[]
[]
[null,null,{"$f":"IF(' Datos de Organizadores '!T4=2,' Derechos de Inscripción '!J29*2,' Derechos de Inscripción '!J29)","v":200},null,null,null,{"$f":"50+C90","v":250},null,null,null,"0081",null,null,7418,null,null,null,null,null,null,null,"0001183321"]
[null,null,null,null,null,null,null,null,null,null,null,null,null,null,null,null,null,61]
[]
[]
[]
[]
[null,null,"El Concursante firmante declara conocer el CDI, las Prescripciones Comunes y el Reglamento Deportivo del Campeonato de Andalucia de RallyCronos, así como también el Reglamento Particular de la Prueba y se compromete a aceptarlos sin ninguna reserva, tanto por sí mismo como por su piloto, por lo que solicita su inscripción en la prueba."]
[]
[]
[]
[null,null,{"$f":"\"De acuerdo con lo establecido en la Ley Orgánica 15/1999 les informamos de que sus datos personales forman parte de un fichero cuyo responsable es \" & C21 & \", con domicilio en \" & C22 &  \", \" & C24 &  \" junto con la Federación Andaluza de Automovilismo. La finalidad de este fichero es llevar a cabo la gestión y control de los participantes en la \" & C18 & \". Si lo desean podrán ejercitar los derechos de acceso, rectificación, cancelación y oposición, dirigiéndose por escrito a la dirección señalada y adjuntando una fotocopia de su DNI.\"","v":"De acuerdo con lo establecido en la Ley Orgánica 15/1999 les informamos de que sus datos personales forman parte de un fichero cuyo responsable es CD Hereje Competición, con domicilio en C/ Osa Mayor 4, 04009-Almeria (ALMERIA) junto con la Federación Andaluza de Automovilismo. La finalidad de este fichero es llevar a cabo la gestión y control de los participantes en la II RallyCrono Ciudad de Enix. Si lo desean podrán ejercitar los derechos de acceso, rectificación, cancelación y oposición, dirigiéndose por escrito a la dirección señalada y adjuntando una fotocopia de su DNI."}]
[null,null,null,null,null,null,null,null,null,null,null,null,null,null,null,null,null,null,null,null,null,null,null,null,null,"Firma del Consursante o representante"]
[null,null,null,null,null,null,null,null,null,null,null,null,null,null,null,null,null,null,null,null,null,null,null,null,null,"En Verificaciones Administrativas"]
[]
[]
[]
[]
[]
[]
[]
[]
[]
[]
[]
[]
[]
[]
[]
[]
[]
[null,null,null,null,null,null,"2013-01-17T01:00:59.920",null,null,null,null,"CAMPEONATO de ANDALUCIA"]
[]
[null,null,null,null,null,null,null,null,null,null,null,"Rally-Cronos 2015"]
[]
[null,3]
[null,null,"Nombre de la prueba",null,null,null,null,null,null,null,null,null,null,null,null,null,null,null,null,null,null,null,null,null,null,"Fecha de la prueba"]
[null,null,{"$f":"C18","v":"II RallyCrono Ciudad de Enix"},null,null,null,null,null,null,null,null,null,null,null,null,null,null,null,null,null,null,null,null,null,null,{"$f":"Z18","v":"2016-11-05"}]
[]
[]
[null,null,"PILOTO",null,null,null,{"$f":"CONCATENATE(D48,\" \",L48,\" \",V48)","v":"  "},null,null,null,null,null,null,null,null,null,null,null,null,null,null,null,null,null,null,"GRUPO",null,null,null,null,"Número"]
[]
[null,null,null,null,null,null,null,null,null,null,null,null,null,null,null,null,null,null,null,null,null,null,null,null,null,{"$f":"CONCATENATE(Q72,\" \",U72)","v":"   "},null,null,null,null,{"$f":"AE25","v":0}]
[]
[null,null,"VEHICULO",null,null,null,{"$f":"CONCATENATE(C68,\" \",C70)","v":" "}]
[]
[]
[]
[]
[]
[null,null,"EQUIPAMIENTO DE SEGURIDAD Y VERIFICACIONES TÉCNICAS"]
[]
[null,null,"Toda modificación o sustirucion de alguno de estos elementos, deberá ser comunicado por el concursante al Delegado Tecnico"]
[null,null,null,"* Antes de las Verificaciones Tecnicas tendra que rellenar todos los datos OBLIGATORIAMENTE"]
[null,null,"OBLIGATORIO RELLENAR POR EL EQUIPO",null,null,null,null,null,null,null,null,null,null,null,null,null,"PILOTO",null,null,null,null,null,null,null,null,"COPILOTO"]
[null,null,"Mono Ignifugo (Nº Homologación FIA)",null,null,null,null,null,null,null,null,null,null,null,null,null,"RS.",null,null,null,null,null,null,null,null,"RS."]
[null,null,"Botas / Guantes (Norma FIA 8856-2000)",null,null,null,null,null,null,null,null,null,null,null,null,null,"/",null,null,null,null,null,null,null,null,"/"]
[null,null,"Camiseta Larga / Calzón Largo (Norma FIA 8856-2000)",null,null,null,null,null,null,null,null,null,null,null,null,null,"/",null,null,null,null,null,null,null,null,"/"]
[null,null,"Sotocasco / Calcetines (Norma FIA 8856-2000)",null,null,null,null,null,null,null,null,null,null,null,null,null,"/",null,null,null,null,null,null,null,null,"/"]
[]
[null,null,"  Casco SNELL SA(2000,2005,2010) SAH (2010)                               ",null,null,null,null,null,null,null,null,null,"Norma"]
[null,null,null,null,null,null,null,null,null,null,null,null,"Marca"]
[null,null,null,null,null,null,null,null,null,null,null,null,"Modelo"]
[]
[null,null,"Hans                                                     FIA 8858-2002 y FIA 8858.2010",null,null,null,null,null,null,null,null,null,"Norma"]
[null,null,null,null,null,null,null,null,null,null,null,null,"Marca"]
[null,null,null,null,null,null,null,null,null,null,null,null,"Modelo"]
[null,null,"Tirante Anclaje Hans",null,null,null,null,null,null,null,null,null,"Norma"]
[]
[null,null,"EQUIPAMIENTO DEL VEHICULO"]
[]
[null,null,"ARNESES",null,null,"PILOTO",null,null,null,null,null,"COPILOTO",null,null,null,null,"ASIENTOS",null,null,null,null,"PILOTO",null,null,null,null,null,"COPILOTO"]
[null,null,"Nº Homol",null,null,null,null,null,null,null,null,null,null,null,null,null,"Nº Homol"]
[null,null,"Norma",null,null,null,null,null,null,null,null,null,null,null,null,null,"Norma"]
[null,null,"Marca",null,null,null,null,null,null,null,null,null,null,null,null,null,"F. Fabrica"]
[null,null,"Año Caduc."]
[]
[null,null,"Sistema de Extinción",null,null,null,null,null,null,null,null,null,"Automática",null,null,null,"Nº Homol",null,null,null,null,null,null,null,"Fecha Revi"]
[null,null,null,null,null,null,null,null,null,null,null,null,"Manual",null,null,null,"Fecha Rev",null,null,null,null,null,null,null,"La revisión tiene validez como maximo 2 años"]
[]
[null,null,"Deposito de Seguridad",null,null,null,null,null,null,null,null,null,"Norma",null,null,null,null,null,null,null,null,null,null,null,"Fecha Fabric."]
[]
[null,null,"///  A PARTIR DE AQUÍ RELLENAR EN LAS VERIFICACIONES POR LOS COMISARIOS TECNICOS   ///"]
[null,null,"Arco Seguridad",null,null,null,null,null,"Aspecto Carroceria"]
[null,null,"Arnes",null,null,null,null,null,"Habitaculo"]
[null,null,"Backets",null,null,null,null,null,"Hueco Motor"]
[null,null,"Extincion",null,null,null,null,null,"Numeros"]
[null,null,"Desconectador",null,null,null,null,null,"Publicidad, Placas"]
[null,null,"Neumaticos",null,null,null,null,null,"CAMARA ON BOARD"]
[null,null,null,null,null,null,null,null,null,null,null,null,null,null,null,null,null,"Firma Piloto/Representante (Verificaciones Técnicas)"]
[null,null,"Observaciones"]
[]
[]
[]
[]
[]
[]
[null,null,null,null,null,null,null,null,null,null,null,null,null,null,null,null,null,"Comisario Tecnico Oc__________AN"]

{"sheet":"Exportacion","index":1,"n_rows":2,"n_cols":115,"rows_kept":2,"cut":false,"hidden":true,"merged":[]}
["NumeroEntrada","NumeroRallye","NumeroOrden","NombreConcursante","PrimerApellidoConcursante","SegundoApellidoConcursante","NomApeConcursante","NacionalidadConcursante","LicenciaConcursante","DniCifConcursante","DireccionConcursante","CodigoPostalConcursante","PoblacionConcursante","ProvinciaConcursante","Telefono1Concursante","Telefono2Concursante","FaxConcursante","EMailConcursante","NombrePiloto","PrimerApellidoPiloto","SegundoApellidoPiloto","NomApePiloto","NacionalidadPiloto","LicenciaPiloto","DniCifPiloto","DireccionPiloto","CodigoPostalPiloto","PoblacionPiloto","ProvinciaPiloto","Telefono1Piloto","Telefono2Piloto","FaxPiloto","EMailPiloto","NombreCopiloto","PrimerApellidoCopiloto","SegundoApellidoCopiloto","NomApeCopiloto","NacionalidadCopiloto","LicenciaCopiloto","DniCifCopiloto","DireccionCopiloto","CodigoPostalCopiloto","PoblacionCopiloto","ProvinciaCopiloto","Telefono1Copiloto","Telefono2Copiloto","FaxCopiloto","EMailCopiloto","Marca","Modelo","Matricula","Cilindrada","FichaHomologacion","Grupo","Clase","Agrupacion","Trofeo01","Trofeo02","Trofeo03","Trofeo04","Trofeo05","Trofeo06","Trofeo07","Trofeo08","Trofeo09","Publicidad","Shakedown","Fecha","Hora","Representante","LicenciaRepresentante","GrupoH","ClaseH","GrupoA","ClaseA","Ouvreur","Auxiliar","NombreA1","PrimerApellidoA1","SegundoApellidoA1","DniCifA1","LicenciaA1","NombreA2","PrimerApellidoA2","SegundoApellidoA2","DniCifA2","LicenciaA2","NombreR1","PrimerApellidoR1","SegundoApellidoR1","DniCifR1","LicenciaR1","NombreR2","PrimerApellidoR2","SegundoApellidoR2","DniCifR2","LicenciaR2","NombreAux","PrimerApellidoAux","SegundoApellidoAux","DniCifAux","LicenciaAux","NombreO1","PrimerApellidoO1","SegundoApellidoO1","DniCifO1","LicenciaO1","NombreO2","PrimerApellidoO2","SegundoApellidoO2","DniCifO2","LicenciaO2","MarcaOuvreur","ModeloOuvreur","MatriculaOuvreur"]
[{"$f":"VALUE(' Boletín de Inscripción '!AA25)","v":0},{"$f":"VALUE(' Boletín de Inscripción '!AE25)","v":0},{"$f":"B2","v":0},{"$f":"IF(' Boletín de Inscripción '!D39=\"\",\"\",IF(LEN(' Boletín de Inscripción '!D39)>50,PROPER(LEFT(' Boletín de Inscripción '!D39,50)),PROPER(' Boletín de Inscripción '!D39)))","v":""},null,null,{"$f":"D2&\" \"&E2&\" \"&F2","v":"  "},{"$f":"IF(' Boletín de Inscripción '!J43=\"\",\"\",UPPER(LEFT(' Boletín de Inscripción '!J43,1)))","v":""},{"$f":"IF(' Boletín de Inscripción '!Y43=\"\",\"\",IF(LEN(' Boletín de Inscripción '!Y43)>20,UPPER(LEFT(' Boletín de Inscripción '!Y43,20)),UPPER(' Boletín de Inscripción '!Y43)))&\" \"&' Boletín de Inscripción '!AD43","v":" "},{"$f":"IF(' Boletín de Inscripción '!R43,\"\",IF(LEN(DNICIFCONCURSANTE)>20,UPPER(LEFT(\"DNICIRCONCURSANTE\",20)),UPPER(DNICIFCONCURSANTE)))","v":""},{"$f":"IF(' Boletín de Inscripción '!D41=\"\",\"\",IF(LEN(' Boletín de Inscripción '!D41)>40,PROPER(LEFT(' Boletín de Inscripción '!D41,40)),PROPER(' Boletín de Inscripción '!D41)))","v":""},{"$f":"IF(' Boletín de Inscripción '!Q41=\"\",\"\",IF(LEN(' Boletín de Inscripción '!Q41)>10,LEFT(' Boletín de Inscripción '!Q41,10),' Boletín de Inscripción '!Q41))","v":""},{"$f":"IF(' Boletín de Inscripción '!V41=\"\",\"\",IF(LEN(' Boletín de Inscripción '!V41)>25,PROPER(LEFT(' Boletín de Inscripción '!V41,25)),PROPER(' Boletín de Inscripción '!V41)))","v":""},{"$f":"IF(' Boletín de Inscripción '!D43=\"\",\"\",IF(LEN(' Boletín de Inscripción '!D43)>25,UPPER(LEFT(' Boletín de Inscripción '!D43,25)),UPPER(' Boletín de Inscripción '!D43)))","v":""},{"$f":"IF(' Boletín de Inscripción '!D45=\"\",\"\",IF(LEN(' Boletín de Inscripción '!D45)>15,LEFT(' Boletín de Inscripción '!D45,15),' Boletín de Inscripción '!D45))","v":""},{"$f":"IF(' Boletín de Inscripción '!I45=\"\",\"\",IF(LEN(' Boletín de Inscripción '!I45)>15,LEFT(' Boletín de Inscripción '!I45,15),' Boletín de Inscripción '!I45))","v":""},{"$f":"IF(' Boletín de Inscripción '!N45=\"\",\"\",IF(LEN(' Boletín de Inscripción '!N45)>15,LEFT(' Boletín de Inscripción '!N45,15),' Boletín de Inscripción '!N45))","v":""},{"$f":"IF(' Boletín de Inscripción '!V45=\"\",\"\",IF(LEN(' Boletín de Inscripción '!V45)>30,LEFT(' Boletín de Inscripción '!V45,30),' Boletín de Inscripción '!V45))","v":""},{"$f":"IF(' Boletín de Inscripción '!V48=\"\",\"\",IF(LEN(' Boletín de Inscripción '!V48)>25,PROPER(LEFT(' Boletín de Inscripción '!V48,25)),PROPER(' Boletín de Inscripción '!V48)))","v":""},{"$f":"IF(' Boletín de Inscripción '!D48=\"\",\"\",IF(LEN(' Boletín de Inscripción '!D48)>25,UPPER(LEFT(' Boletín de Inscripción '!D48,25)),UPPER(' Boletín de Inscripción '!D48)))","v":""},{"$f":"IF(' Boletín de Inscripción '!L48=\"\",\"\",IF(LEN(' Boletín de Inscripción '!L48)>25,UPPER(LEFT(' Boletín de Inscripción '!L48,25)),UPPER(' Boletín de Inscripción '!L48)))","v":""},{"$f":"S2&\" \"&T2&\" \"&U2","v":"  "},{"$f":"IF(' Boletín de Inscripción '!J52=\"\",\"\",UPPER(LEFT(' Boletín de Inscripción '!J52,1)))","v":""},{"$f":"IF(' Boletín de Inscripción '!Y52=\"\",\"\",IF(LEN(' Boletín de Inscripción '!Y52)>20,UPPER(LEFT(' Boletín de Inscripción '!Y52,20)),UPPER(' Boletín de Inscripción '!Y52)))","v":""},{"$f":"IF(' Boletín de Inscripción '!Q52=\"\",\"\",IF(LEN(' Boletín de Inscripción '!Q52)>20,UPPER(LEFT(' Boletín de Inscripción '!Q52,20)),UPPER(' Boletín de Inscripción '!Q52)))","v":""},{"$f":"IF(' Boletín de Inscripción '!D50=\"\",\"\",IF(LEN(' Boletín de Inscripción '!D50)>40,PROPER(LEFT(' Boletín de Inscripción '!D50,40)),PROPER(' Boletín de Inscripción '!D50)))","v":""},{"$f":"IF(' Boletín de Inscripción '!Q50=\"\",\"\",IF(LEN(' Boletín de Inscripción '!Q50)>10,LEFT(' Boletín de Inscripción '!Q50,10),' Boletín de Inscripción '!Q50))","v":""},{"$f":"IF(' Boletín de Inscripción '!V50=\"\",\"\",IF(LEN(' Boletín de Inscripción '!V50)>25,PROPER(LEFT(' Boletín de Inscripción '!V50,25)),PROPER(' Boletín de Inscripción '!V50)))","v":""},{"$f":"IF(' Boletín de Inscripción '!D52=\"\",\"\",IF(LEN(' Boletín de Inscripción '!D52)>25,UPPER(LEFT(' Boletín de Inscripción '!D52,25)),UPPER(' Boletín de Inscripción '!D52)))","v":""},{"$f":"IF(' Boletín de Inscripción '!D54=\"\",\"\",IF(LEN(' Boletín de Inscripción '!D54)>15,LEFT(' Boletín de Inscripción '!D54,15),' Boletín de Inscripción '!D54))","v":""},{"$f":"IF(' Boletín de Inscripción '!I54=\"\",\"\",IF(LEN(' Boletín de Inscripción '!I54)>15,LEFT(' Boletín de Inscripción '!I54,15),' Boletín de Inscripción '!I54))","v":""},{"$f":"IF(' Boletín de Inscripción '!N54=\"\",\"\",IF(LEN(' Boletín de Inscripción '!N54)>15,LEFT(' Boletín de Inscripción '!N54,15),' Boletín de Inscripción '!N54))","v":""},{"$f":"IF(' Boletín de Inscripción '!V54=\"\",\"\",IF(LEN(' Boletín de Inscripción '!V54)>30,LEFT(' Boletín de Inscripción '!V54,30),' Boletín de Inscripción '!V54))","v":""},{"$f":"IF(' Boletín de Inscripción '!V57=\"\",\"\",IF(LEN(' Boletín de Inscripción '!V57)>25,PROPER(LEFT(' Boletín de Inscripción '!V57,25)),PROPER(' Boletín de Inscripción '!V57)))","v":""},{"$f":"IF(' Boletín de Inscripción '!D57=\"\",\"\",IF(LEN(' Boletín de Inscripción '!D57)>25,UPPER(LEFT(' Boletín de Inscripción '!D57,25)),UPPER(' Boletín de Inscripción '!D57)))","v":""},{"$f":"IF(' Boletín de Inscripción '!L57=\"\",\"\",IF(LEN(' Boletín de Inscripción '!L57)>25,UPPER(LEFT(' Boletín de Inscripción '!L57,25)),UPPER(' Boletín de Inscripción '!L57)))","v":""},{"$f":"AH2&\" \"&AI2&\" \"&AJ2","v":"  "},{"$f":"IF( ' Boletín de Inscripción '!J61=\"\",\"\",UPPER(LEFT(' Boletín de Inscripción '!J61,1)))","v":""},{"$f":"IF(' Boletín de Inscripción '!Y61=\"\",\"\",IF(LEN(' Boletín de Inscripción '!Y61)>20,UPPER(LEFT(' Boletín de Inscripción '!Y61,20)),UPPER(' Boletín de Inscripción '!Y61)))","v":""},{"$f":"IF(' Boletín de Inscripción '!Q61=\"\",\"\",IF(LEN(' Boletín de Inscripción '!Q61)>20,UPPER(LEFT(' Boletín de Inscripción '!Q61,20)),UPPER(' Boletín de Inscripción '!Q61)))","v":""},{"$f":"IF(' Boletín de Inscripción '!D59=\"\",\"\",IF(LEN(' Boletín de Inscripción '!D59)>40,PROPER(LEFT(' Boletín de Inscripción '!D59,40)),PROPER(' Boletín de Inscripción '!D59)))","v":""},{"$f":"IF(' Boletín de Inscripción '!Q59=\"\",\"\",IF(LEN(' Boletín de Inscripción '!Q59)>10,LEFT(' Boletín de Inscripción '!Q59,10),' Boletín de Inscripción '!Q59))","v":""},{"$f":"IF(' Boletín de Inscripción '!V59=\"\",\"\",IF(LEN(' Boletín de Inscripción '!V59)>25,PROPER(LEFT(' Boletín de Inscripción '!V59,25)),PROPER(' Boletín de Inscripción '!V59)))","v":""},{"$f":"IF(' Boletín de Inscripción '!D61=\"\",\"\",IF(LEN(' Boletín de Inscripción '!D61)>25,UPPER(LEFT(' Boletín de Inscripción '!D61,25)),UPPER(' Boletín de Inscripción '!D61)))","v":""},{"$f":"IF(' Boletín de Inscripción '!D63=\"\",\"\",IF(LEN(' Boletín de Inscripción '!D63)>15,LEFT(' Boletín de Inscripción '!D63,15),' Boletín de Inscripción '!D63))","v":""},{"$f":"IF(' Boletín de Inscripción '!I63=\"\",\"\",IF(LEN(' Boletín de Inscripción '!I63)>15,LEFT(' Boletín de Inscripción '!I63,15),' Boletín de Inscripción '!I63))","v":""},{"$f":"IF(' Boletín de Inscripción '!N63=\"\",\"\",IF(LEN(' Boletín de Inscripción '!N63)>15,LEFT(' Boletín de Inscripción '!N63,15),' Boletín de Inscripción '!N63))","v":""},{"$f":"IF(' Boletín de Inscripción '!V63=\"\",\"\",IF(LEN(' Boletín de Inscripción '!V63)>30,LEFT(' Boletín de Inscripción '!V63,30),' Boletín de Inscripción '!V63))","v":""},{"$f":"IF(' Boletín de Inscripción '!C68=\"\",\"\",IF(LEN(' Boletín de Inscripción '!C68)>25,PROPER(LEFT(' Boletín de Inscripción '!C68,25)),PROPER(' Boletín de Inscripción '!C68)))","v":""},{"$f":"IF(' Boletín de Inscripción '!C70=\"\",\"\",IF(LEN(' Boletín de Inscripción '!C70)>25,UPPER(LEFT(' Boletín de Inscripción '!C70,25)),UPPER(' Boletín de Inscripción '!C70)))","v":""},{"$f":"IF(' Boletín de Inscripción '!J74=\"\",\"\",IF(LEN(' Boletín de Inscripción '!J74)>25,UPPER(LEFT(' Boletín de Inscripción '!J74,25)),UPPER(' Boletín de Inscripción '!J74)))","v":""},{"$f":"IF(' Boletín de Inscripción '!C74=\"\",\"\",IF(LEN(' Boletín de Inscripción '!C74)>25,UPPER(LEFT(' Boletín de Inscripción '!C74,25)),UPPER(' Boletín de Inscripción '!C74)))","v":"0"},{"$f":"IF(' Boletín de Inscripción '!J68=\"\",\"\",IF(LEN(' Boletín de Inscripción '!J68)>25,UPPER(LEFT(' Boletín de Inscripción '!J68,25)),UPPER(' Boletín de Inscripción '!J68)))","v":""},{"$f":"IF(' Boletín de Inscripción '!Z131=\"\",\"\",IF(LEN(' Boletín de Inscripción '!Z131)>3,UPPER(LEFT(' Boletín de Inscripción '!Z131,5)),UPPER(' Boletín de Inscripción '!Z131)))","v":"   "},{"$f":"IF(' Boletín de Inscripción '!W72=\"\",\"\",IF(LEN(' Boletín de Inscripción '!W72)>3,LEFT(' Boletín de Inscripción '!W72,10),' Boletín de Inscripción '!W72))","v":0},{"$f":"IF(' Boletín de Inscripción '!Q69=\"\",\"\",IF(LEN(' Boletín de Inscripción '!Q69)>3,LEFT(' Boletín de Inscripción '!Q69,25),' Boletín de Inscripción '!Q69))","v":" "},{"$f":"IF(Trofeo1=TRUE,\"SI\",\"NO\")","v":{"$error":"#REF!"}},{"$f":"IF(Trofeo2=TRUE,\"SI\",\"NO\")","v":{"$error":"#REF!"}},{"$f":"IF(Trofeo3=TRUE,\"SI\",\"NO\")","v":{"$error":"#REF!"}},{"$f":"IF(Trofeo4=TRUE,\"SI\",\"NO\")","v":{"$error":"#REF!"}},{"$f":"IF(Trofeo5=TRUE,\"SI\",\"NO\")","v":{"$error":"#REF!"}},{"$f":"IF(Trofeo6=TRUE,\"SI\",\"NO\")","v":{"$error":"#REF!"}},{"$f":"IF(Trofeo7=TRUE,\"SI\",\"NO\")","v":"NO"},{"$f":"IF(Trofeo8=TRUE,\"SI\",\"NO\")","v":"SI"},"NO",{"$f":"IF(Publicidad=1,\"SI\",\"NO\")","v":"SI"},{"$f":"IF(Shakedown=TRUE,\"SI\",\"NO\")","v":"NO"},{"$f":"IF(' Boletín de Inscripción '!W25=\"\",TODAY(),' Boletín de Inscripción '!V25)","v":"2016-09-20"},{"$f":"IF(' Boletín de Inscripción '!W28=\"\",NOW(),' Boletín de Inscripción '!W28)","v":42633.554579861113},{"$f":"IF(' Boletín de Inscripción '!#REF!=\"\",\"\",IF(LEN(' Boletín de Inscripción '!#REF!)>61,PROPER(LEFT(' Boletín de Inscripción '!#REF!,61)),PROPER(' Boletín de Inscripción '!#REF!)))","v":{"$error":"#REF!"}},"        ",{"$f":"IF(' Boletín de Inscripción '!#REF!=\"\",\"\",IF(LEN(' Boletín de Inscripción '!#REF!)>1,UPPER(LEFT(' Boletín de Inscripción '!#REF!,1)),UPPER(' Boletín de Inscripción '!#REF!)))","v":{"$error":"#REF!"}},{"$f":"IF(' Boletín de Inscripción '!#REF!=\"\",\"\",IF(LEN(' Boletín de Inscripción '!#REF!)>1,LEFT(' Boletín de Inscripción '!#REF!,1),' Boletín de Inscripción '!#REF!))","v":{"$error":"#REF!"}},{"$f":"IF(' Boletín de Inscripción '!#REF!=\"\",\"\",IF(LEN(' Boletín de Inscripción '!#REF!)>1,UPPER(LEFT(' Boletín de Inscripción '!#REF!,1)),UPPER(' Boletín de Inscripción '!#REF!)))","v":{"$error":"#REF!"}},{"$f":"IF(' Boletín de Inscripción '!#REF!=\"\",\"\",IF(LEN(' Boletín de Inscripción '!#REF!)>1,LEFT(' Boletín de Inscripción '!#REF!,1),' Boletín de Inscripción '!#REF!))","v":{"$error":"#REF!"}},{"$f":"IF(Ouvreur=TRUE,\"SI\",\"NO\")","v":"NO"},{"$f":"IF(Auxiliar=TRUE,\"SI\",\"NO\")","v":"NO"},{"$f":"IF(NombreA1=\"\",\"\",IF(LEN(NombreA1)>25,UPPER(LEFT(NombreA1,25)),UPPER(NombreA1)))","v":{"$error":"#REF!"}},{"$f":"IF(PrimerApellidoA1=\"\",\"\",IF(LEN(PrimerApellidoA1)>25,UPPER(LEFT(PrimerApellidoA1,25)),UPPER(PrimerApellidoA1)))","v":{"$error":"#REF!"}},{"$f":"IF(SegundoApellidoA1=\"\",\"\",IF(LEN(SegundoApellidoA1)>25,UPPER(LEFT(SegundoApellidoA1,25)),UPPER(SegundoApellidoA1)))","v":{"$error":"#REF!"}},{"$f":"IF(DniCifA1=\"\",\"\",IF(LEN(DniCifA1)>25,UPPER(LEFT(DniCifA1,25)),UPPER(DniCifA1)))","v":{"$error":"#REF!"}},{"$f":"IF(LicenciaA1=\"\",\"\",IF(LEN(LicenciaA1)>25,UPPER(LEFT(LicenciaA1,25)),UPPER(LicenciaA1)))","v":{"$error":"#REF!"}},{"$f":"IF(NombreA2=\"\",\"\",IF(LEN(NombreA2)>25,UPPER(LEFT(NombreA2,25)),UPPER(NombreA2)))","v":{"$error":"#REF!"}},{"$f":"IF(PrimerApellidoA2=\"\",\"\",IF(LEN(PrimerApellidoA2)>25,UPPER(LEFT(PrimerApellidoA2,25)),UPPER(PrimerApellidoA2)))","v":{"$error":"#REF!"}},{"$f":"IF(SegundoApellidoA2=\"\",\"\",IF(LEN(SegundoApellidoA2)>25,UPPER(LEFT(SegundoApellidoA2,25)),UPPER(SegundoApellidoA2)))","v":{"$error":"#REF!"}},{"$f":"IF(DniCifA2=\"\",\"\",IF(LEN(DniCifA2)>25,UPPER(LEFT(DniCifA2,25)),UPPER(DniCifA2)))","v":{"$error":"#REF!"}},{"$f":"IF(LicenciaA2=\"\",\"\",IF(LEN(LicenciaA2)>25,UPPER(LEFT(LicenciaA2,25)),UPPER(LicenciaA2)))","v":{"$error":"#REF!"}},{"$f":"IF(NombreR1=\"\",\"\",IF(LEN(NombreR1)>25,UPPER(LEFT(NombreR1,25)),UPPER(NombreR1)))","v":{"$error":"#REF!"}},{"$f":"IF(PrimerApellidoR1=\"\",\"\",IF(LEN(PrimerApellidoR1)>25,UPPER(LEFT(PrimerApellidoR1,25)),UPPER(PrimerApellidoR1)))","v":{"$error":"#REF!"}},{"$f":"IF(SegundoApellidoR1=\"\",\"\",IF(LEN(SegundoApellidoR1)>25,UPPER(LEFT(SegundoApellidoR1,25)),UPPER(SegundoApellidoR1)))","v":{"$error":"#REF!"}},{"$f":"IF(DniCifR1=\"\",\"\",IF(LEN(DniCifR1)>25,UPPER(LEFT(DniCifR1,25)),UPPER(DniCifR1)))","v":{"$error":"#REF!"}},{"$f":"IF(LicenciaR1=\"\",\"\",IF(LEN(LicenciaR1)>25,UPPER(LEFT(LicenciaR1,25)),UPPER(LicenciaR1)))","v":{"$error":"#REF!"}},{"$f":"IF(NombreR2=\"\",\"\",IF(LEN(NombreR2)>25,UPPER(LEFT(NombreR2,25)),UPPER(NombreR2)))","v":{"$error":"#REF!"}},{"$f":"IF(PrimerApellidoR2=\"\",\"\",IF(LEN(PrimerApellidoR2)>25,UPPER(LEFT(PrimerApellidoR2,25)),UPPER(PrimerApellidoR2)))","v":{"$error":"#REF!"}},{"$f":"IF(SegundoApellidoR2=\"\",\"\",IF(LEN(SegundoApellidoR2)>25,UPPER(LEFT(SegundoApellidoR2,25)),UPPER(SegundoApellidoR2)))","v":{"$error":"#REF!"}},{"$f":"IF(DniCifR2=\"\",\"\",IF(LEN(DniCifR2)>25,UPPER(LEFT(DniCifR2,25)),UPPER(DniCifR2)))","v":{"$error":"#REF!"}},{"$f":"IF(LicenciaR2=\"\",\"\",IF(LEN(LicenciaR2)>25,UPPER(LEFT(LicenciaR2,25)),UPPER(LicenciaR2)))","v":{"$error":"#REF!"}},{"$f":"IF(NombreAux=\"\",\"\",IF(LEN(NombreAux)>25,UPPER(LEFT(NombreAux,25)),UPPER(NombreAux)))","v":{"$error":"#REF!"}},{"$f":"IF(PrimerApellidoAux=\"\",\"\",IF(LEN(PrimerApellidoAux)>25,UPPER(LEFT(PrimerApellidoAux,25)),UPPER(PrimerApellidoAux)))","v":{"$error":"#REF!"}},{"$f":"IF(SegundoApellidoAux=\"\",\"\",IF(LEN(SegundoApellidoAux)>25,UPPER(LEFT(SegundoApellidoAux,25)),UPPER(SegundoApellidoAux)))","v":{"$error":"#REF!"}},{"$f":"IF(DniCifAux=\"\",\"\",IF(LEN(DniCifAux)>25,UPPER(LEFT(DniCifAux,25)),UPPER(DniCifAux)))","v":{"$error":"#REF!"}},{"$f":"IF(LicenciaAux=\"\",\"\",IF(LEN(LicenciaAux)>25,UPPER(LEFT(LicenciaAux,25)),UPPER(LicenciaAux)))","v":{"$error":"#REF!"}},{"$f":"IF(NombreO1=\"\",\"\",IF(LEN(NombreO1)>25,UPPER(LEFT(NombreO1,25)),UPPER(NombreO1)))","v":{"$error":"#REF!"}},{"$f":"IF(PrimerApellidoO1=\"\",\"\",IF(LEN(PrimerApellidoO1)>25,UPPER(LEFT(PrimerApellidoO1,25)),UPPER(PrimerApellidoO1)))","v":{"$error":"#REF!"}},{"$f":"IF(SegundoApellidoO1=\"\",\"\",IF(LEN(SegundoApellidoO1)>25,UPPER(LEFT(SegundoApellidoO1,25)),UPPER(SegundoApellidoO1)))","v":{"$error":"#REF!"}},{"$f":"IF(DniCifO1=\"\",\"\",IF(LEN(DniCifO1)>25,UPPER(LEFT(DniCifO1,25)),UPPER(DniCifO1)))","v":{"$error":"#REF!"}},{"$f":"IF(LicenciaO1=\"\",\"\",IF(LEN(LicenciaO1)>25,UPPER(LEFT(LicenciaO1,25)),UPPER(LicenciaO1)))","v":{"$error":"#REF!"}},{"$f":"IF(NombreO2=\"\",\"\",IF(LEN(NombreO2)>25,UPPER(LEFT(NombreO2,25)),UPPER(NombreO2)))","v":{"$error":"#REF!"}},{"$f":"IF(PrimerApellidoO2=\"\",\"\",IF(LEN(PrimerApellidoO2)>25,UPPER(LEFT(PrimerApellidoO2,25)),UPPER(PrimerApellidoO2)))","v":{"$error":"#REF!"}},{"$f":"IF(SegundoApellidoO2=\"\",\"\",IF(LEN(SegundoApellidoO2)>25,UPPER(LEFT(SegundoApellidoO2,25)),UPPER(SegundoApellidoO2)))","v":{"$error":"#REF!"}},{"$f":"IF(DniCifO2=\"\",\"\",IF(LEN(DniCifO2)>25,UPPER(LEFT(DniCifO2,25)),UPPER(DniCifO2)))","v":{"$error":"#REF!"}},{"$f":"IF(LicenciaO2=\"\",\"\",IF(LEN(LicenciaO2)>25,UPPER(LEFT(LicenciaO2,25)),UPPER(LicenciaO2)))","v":{"$error":"#REF!"}},{"$f":"IF(MarcaOuvreur=\"\",\"\",IF(LEN(MarcaOuvreur)>25,UPPER(LEFT(MarcaOuvreur,25)),UPPER(MarcaOuvreur)))","v":{"$error":"#REF!"}},{"$f":"IF(ModeloOuvreur=\"\",\"\",IF(LEN(ModeloOuvreur)>25,PROPER(LEFT(ModeloOuvreur,25)),PROPER(ModeloOuvreur)))","v":{"$error":"#REF!"}},{"$f":"IF(MatriculaOuvreur=\"\",\"\",IF(LEN(MatriculaOuvreur)>25,UPPER(LEFT(MatriculaOuvreur,25)),UPPER(MatriculaOuvreur)))","v":{"$error":"#REF!"}}]

{"sheet":" Derechos de Inscripción ","index":2,"n_rows":38,"n_cols":13,"rows_kept":38,"cut":false,"hidden":false,"merged":[[31,9,31,11],[29,12,29,14],[28,9,28,11],[28,12,28,14],[27,1,31,1],[37,9,37,10],[37,11,37,14],[27,12,27,14],[29,9,29,11],[30,9,30,11],[33,8,33,9],[33,11,33,14],[30,12,30,14],[27,9,27,11],[31,12,31,14],[27,2,27,8],[28,2,28,8],[29,2,29,8],[30,2,30,8],[31,2,31,8],[33,1,33,6],[16,2,16,13],[26,2,26,13],[19,2,19,13],[21,3,21,14],[13,2,13,13],[17,1,17,14],[20,1,24,1],[20,3,20,14],[22,5,22,14],[23,3,23,14],[24,7,24,14],[10,3,11,13],[10,2,11,2],[6,3,7,13],[1,4,2,14],[2,1,2,2],[4,1,4,14],[8,3,9,13],[8,2,9,2],[6,2,7,2]]}
[]
[null,null,null,null,"Campeonato de Andalucia                                                        Rally-Cronos 2016"]
[]
[]
[null,"DATOS DE LOS DERECHOS DE INSCRIPCIÓN"]
[]
[null,null,1,"Seleccione la prueba correspondiente en la lista desplegable, los datos del nombre de la prueba y del Club Organizador se actualizarán automáticamente."]
[]
[null,null,2,"Modifique los importes de los derechos de inscripción y el resto de derechos de acuerdo a lo dispuesto en el Reglamento Particular de la prueba cuya inscripción se desea rellenar."]
[]
[null,null,3,"Pulse sobre el botón \"Rellenar el Boletín de Inscripción\" y, una vez actualizados sus datos imprima o guarde la Solicitud de Inscripción según desee enviarla por Fax o Correo Electrónico."]
[]
[]
[null,null,"Guarde esta solicitud de inscripción una vez rellenada, pues la misma le servirá para cualquier prueba del Campeonato de  ANDALUCIA 2014 simplemente con seleccionar la prueba en cuestión y evitando el tener que rellenar nuevamente aquellos datos personales o del vehículo que no hayan sufrido modificaciones  de  una prueba a otra."]
[]
[null,null,2]
[null,null,"Nombre de la Prueba"]
[null,{"$f":"VLOOKUP(C16,' Datos de Organizadores '!A3:K19,2)","v":"II RallyCrono Ciudad de Enix"}]
[]
[null,null,"DATOS DEL ORGANIZADOR"]
[null,"Organizador","Club",{"$f":"VLOOKUP(C16,' Datos de Organizadores '!A3:K11,3)","v":"CD Hereje Competición"}]
[null,null,"Dirección",{"$f":"VLOOKUP(C16,' Datos de Organizadores '!A3:K11,4)","v":"C/ Osa Mayor 4"}]
[null,null,"C. Postal",{"$f":"VLOOKUP(C16,' Datos de Organizadores '!A3:K11,5)","v":"04009"},"Localidad:",{"$f":"VLOOKUP(C16,' Datos de Organizadores '!A3:K11,6)","v":"Almeria"}]
[null,null,"Provincia",{"$f":"IF(VLOOKUP($C$16,' Datos de Organizadores '!$A$3:$K$11,7)<>0,\"(\"&(VLOOKUP($C$16,' Datos de Organizadores '!$A$3:$K$11,7)&\")\"),\"\")","v":"(ALMERIA)"}]
[null,null,"Teléfono",637753716,"FAX",{"$f":"VLOOKUP(C16,' Datos de Organizadores '!A3:K11,9)","v":0},"e_mail",{"$f":"VLOOKUP($C$16,' Datos de Organizadores '!$A$3:$K$19,10)","v":"herejecompeticion@gmail.com"}]
[]
[null,null,"IMPORTES DE LOS DERECHOS"]
[null,"Derechos","Conceptos",null,null,null,null,null,null,"1º Cierre",null,null,"2º Cierre"]
[null,null,"DERECHOS DE INSCRIPCIÓN",null,null,null,null,null,null,200,null,null,250]
[null,null,"INSCRIPCIÓN AL SHAKEDOWN",null,null,null,null,null,null,0]
[null,null,"CIERRE INSCRIPCION",null,null,null,null,null,null,{"$f":"VLOOKUP($C$16,' Datos de Organizadores '!$A$3:$Q$12,16)","v":"2016-10-31"}]
[null,null,null,null,null,null,null,null,null,0]
[]
[null,"CUENTA PARA TRANSFERENCIA INSCRIPCIONES",null,null,null,null,null,"0081","7418",null,"61","0001183321"]
[]
[]
[]
[null,{"$f":"VLOOKUP(C16,' Datos de Organizadores '!A3:Q8,15)","v":42679},null,null,null,{"$f":"VLOOKUP(C16,' Datos de Organizadores '!A3:O5,12)","v":0},{"$f":"VLOOKUP(C16,' Datos de Organizadores '!A3:O5,13)","v":0},{"$f":"VLOOKUP(C16,' Datos de Organizadores '!A3:O5,14)","v":0},null,"2016-05-16",null,"2016-05-01"]

{"sheet":" Datos de Organizadores ","index":3,"n_rows":51,"n_cols":28,"rows_kept":51,"cut":false,"hidden":true,"merged":[[0,0,0,10],[0,11,0,13],[0,14,0,16]]}
["DATOS DE ORGANIZADORES",null,null,null,null,null,null,null,null,null,null,"categorias",null,null,"Fechas"]
["Nº","Nombre de la Prueba","Club Organizador","Dirección","C.P.","Localidad","Provincia","Teléfono","Fax","E_Mail","Cuenta de abono inscripciones","Categoría 1","Categoría 2","Categoría 3","Celebracion","1º Cierre","2º Cierre"]
[1,"VII RallyCrono Ciudad de Berja","AC EL EJIDO","C/ Sevilla, 10",4700,"El Ejido","Almeria",606430525,null,"automovilclubelejido@gmail.com ",null,null,null,null,"2016-09-10",{"$f":"O3-5","v":"2016-09-05"},null,null,null,{"$f":"' Derechos de Inscripción '!C16","v":2},"Numrallye"]
[2,"II RallyCrono Ciudad de Enix","CD Hereje Competición","C/ Osa Mayor 4","04009","Almeria","ALMERIA","696979000 ",null,"herejecompeticion@gmail.com",null,null,null,null,"2016-11-05",{"$f":"O4-5","v":"2016-10-31"},null,null,null,1,"Publicidad",0,null,{"$f":"IF(Blanco=TRUE,\"¡¡¡ ATENCIÓN !!! DATOS OCULTOS\",\"ESTADO NORMAL (Todos los datos visibles)\")","v":"ESTADO NORMAL (Todos los datos visibles)"}]
[3," II RallyCrono Montilla","RS SPORT","C/ TENERIA 11","11600","UBRIQUE","CADIZ","648 29 27 01",null,"rssport01@gmail.com",null,null,null,null,"2016-12-04",{"$f":"O5-5","v":"2016-11-29"},null,null,null,false,"Shakedown",{"$f":"IF(Blanco=TRUE,FALSE,IF(Shakedown=TRUE,#N/A,FALSE))","v":false},null,{"$f":"IF(Blanco=TRUE,\"Desactive la casilla para mostrarlos e imprimirlos\",\"Active la casilla para imprimir un Boletín de Inscripción vacío\")","v":"Active la casilla para imprimir un Boletín de Inscripción vacío"}]
[4,"II RallyCrono de Cantoria","AC BALCON DEL ALMANZORA","Avda. de Circunvalación nº 12","04877","SOMONTIN","ALMERIA",651863982,null,"acbdalmanzora@hotmail.com",null,null,null,null,"2016-12-18",{"$f":"O6-5","v":"2016-12-13"}]
[5,null,null,null,null,null,null,null,null,null,null,null,null,null,null,null,null,null,null,false,"Ouvreur",{"$f":"IF(Blanco=TRUE,FALSE,IF(Ouvreur=TRUE,#N/A,FALSE))","v":false}]
[6,null,null,null,null,null,null,null,null,null,null,null,null,null,null,null,null,null,null,false,"Auxiliar",{"$f":"IF(Blanco=TRUE,FALSE,IF(Auxiliar=TRUE,#N/A,FALSE))","v":false}]
[null,null,null,null,null,null,null,null,null,null,null,null,null,null,null,null,null,null,null,false,"Trofeo1(hankok)",{"$f":"IF(Blanco=TRUE,FALSE,IF(Trofeo7=TRUE,#N/A,FALSE))","v":false}]
[null,null,null,null,null,null,null,null,null,null,null,null,null,null,null,null,null,null,null,true,"Trofeo2 (Racc)",{"$f":"IF(Blanco=TRUE,FALSE,IF(Trofeo8=TRUE,#N/A,FALSE))","v":{"$error":"#N/A"}}]
[null,null,null,null,null,null,null,null,null,null,null,null,null,null,null,null,null,null,null,false,"Trofeo9",{"$f":"IF(Blanco=TRUE,FALSE,IF(Trofeo9=TRUE,#N/A,FALSE))","v":false}]
[null,null,null,null,null,null,null,null,null,null,null,null,null,null,null,null,null,null,null,false,"Trofeo10",{"$f":"IF(Blanco=TRUE,FALSE,IF(Trofeo10=TRUE,#N/A,FALSE))","v":false}]
[null,null,null,null,null,null,null,null,null,null,null,null,null,null,null,"Nacional",null,null,null,false,"España",{"$f":"IF(Blanco=TRUE,FALSE,IF(España=TRUE,#N/A,FALSE))","v":false}]
[null,null,null,null,null,null,null,null,null,null,null,null,null,null,null,"Autonomico",null,null,null,false,"Autonomico",{"$f":"IF(Blanco=TRUE,FALSE,IF(Autonomico=TRUE,#N/A,FALSE))","v":false}]
[null,null,null,null,null,null,null,null,null,null,null,null,null,null,null,"Ambos",null,null,null,false,"Clasicos",{"$f":"IF(Blanco=TRUE,FALSE,IF(Clasicos=TRUE,#N/A,FALSE))","v":false}]
[null,null,null,null,null,null,null,null,null,null,null,null,null,null,null,null,null,null,null,false,"Blanco"]
[null,null,null,null,null,null,null,null,null,null,null,null,null,null,null,null,null,null,null,false,"IVA",{"$f":"IF(IVA=TRUE,16/100,\"\")","v":""}]
[null,null,null,null,null,null,null,null,null,null,null,null,null,null,null,null,null,null,null,2,"Efectivo"]
[]
[null,null,null,null,null,null,null,null,null,null,null,null,null,null,null,null,null,null,null,1,1,"División I",null,"I"]
[null,null,null,null,null,null,null,null,null,null,null,null,null,null,null,null,null,null,null,null,2,"División II",null,"II"]
[null,null,null,null,null,null,null,null,null,null,null,null,null,null,null,null,null,null,null,null,3,"División II-A",null,"II-A"]
[null,null,null,null,null,null,null,null,null,null,null,null,null,null,null,null,null,null,null,null,4,"División III",null,"III"]
[null,null,null,null,null,null,null,null,null,null,null,null,null,null,null,null,false,null,null,null,5,"Car Cross",null,"CC"]
[]
[]
[null,null,null,null,null,null,null,null,null,null,null,null,null,null,null,null,null,2,"TURBO",null,null,"Grupo"]
[null,null,null,null,null,null,null,null,null,null,null,null,null,null,null,null,null,null,null,null,1,"Seleccionar de la lista desplegable"," "," "]
[null,null,null,null,null,null,null,null,null,null,null,null,null,null,null,null,null,null,null,null,2,"Vehículos Grupo N ","N","AGRUPACIÓN I",null,"HISTORICOS",1]
[null,null,null,null,null,null,null,null,null,null,null,null,null,null,null,null,null,null,null,"Grupo",3,"Vehículos Grupo A","A","AGRUPACIÓN II",null,1,"Seleccionar Grupo "]
[null,null,null,null,null,null,null,null,null,null,null,null,null,null,null,null,null,null,null,1,4,"Vehículos F2000","F-2","AGRUPACIÓN II",null,2,"Gr A","A"]
[null,null,null,null,null,null,null,null,null,null,null,null,null,null,null,null,null,null,null,null,5,"Vehículos S1600","S16","AGRUPACIÓN II",null,3,"Gr N","N"]
[null,null,null,null,null,null,null,null,null,null,null,null,null,null,null,null,null,null,null,null,6,"Vehículos S2000","S20","AGRUPACIÓN II",null,4,"Gr F2","F2"]
[null,null,null,null,null,null,null,null,null,null,null,null,null,null,null,null,null,null,null,"Division",7,"Vehículos Grupo R 1-2-3-4-5","R","AGRUPACIÓN II",null,5,"Gr A1/2","A1/2"]
[null,null,null,null,null,null,null,null,null,null,null,null,null,null,null,null,null,null,null,{"$f":"IF(cc<=1400,1,IF(cc<=1600,2,IF(cc<=2000,3,4)))","v":1},8,"Vehículos N+","N+","AGRUPACIÓN II",null,6,"Gr B","B"]
[null,null,null,null,null,null,null,null,null,null,null,null,null,null,null,null,null,null,null,"Division H",9,"Vehículos GT","GT","AGRUPACIÓN II",null,7,"Gr I","I"]
[null,null,null,null,null,null,null,null,null,null,null,null,null,null,null,null,null,null,null,{"$f":"IF(cc<=1600,1,2)","v":1},10,null,null,null,null,8,"Gr II","II"]
[null,null,null,null,null,null,null,null,null,null,null,null,null,null,null,null,null,null,null,"CLASE",null,null,null,null,null,9,"Gr III","III"]
[null,null,null,null,null,null,null,null,null,null,null,null,null,null,null,null,null,null,null,{"$f":"VLOOKUP(Grupo,$T$41:$X$51,MATCH(DIVISION,$T$40:$X$40,0),0)","v":0},null,null,null,null,null,10,"Gr IV","IV"]
[null,null,null,null,null,null,null,null,null,null,null,null,null,null,null,null,null,null,null,null,1,2,3,4,null,11,"Gr V","V"]
[null,null,null,null,null,null,null,null,null,null,null,null,null,null,null,null,null,"DIVISION",null,1]
[null,null,null,null,null,null,null,null,null,null,null,null,null,null,null,null,null,null,null,2,"I","II","III","IV"]
[null,null,null,null,null,null,null,null,null,null,null,null,null,null,null,null,null,{"$f":"IF(cc<=1400,\"1\")","v":"1"},null,3,"I","II","III","IV"]
[null,null,null,null,null,null,null,null,null,null,null,null,null,null,null,null,null,null,null,4,"I","II","III","IV"]
[null,null,null,null,null,null,null,null,null,null,null,null,null,null,null,null,null,null,null,5,"I","II","III","IV"]
[null,null,null,null,null,null,null,null,null,null,null,null,null,null,null,null,null,null,null,6,"V","V","V","V"]
[null,null,null,null,null,null,null,null,null,null,null,null,null,null,null,null,null,null,null,7,"V","V","V","V"]
[null,null,null,null,null,null,null,null,null,null,null,null,null,null,null,null,null,null,null,8,"V","V","V","V"]
[null,null,null,null,null,null,null,null,null,null,null,null,null,null,null,null,null,null,null,9,"V","V","V","V"]
[null,null,null,null,null,null,null,null,null,null,null,null,null,null,null,null,null,null,null,10]
[null,null,null,null,null,null,null,null,null,null,null,null,null,null,null,null,null,null,null,11]